[Event "*** SCC Grand Prix: Titled Tuesday Blitz"]
[Site "Chess.com"]
[Date "2020.07.07"]
[Round "6"]
[White "NormWeinstein"]
[Black "wild_cat99"]
[Result "0-1"]
[WhiteElo "2447"]
[BlackElo "2602"]
[TimeControl "180+1"]
[EndTime "11:05:45 PDT"]
[Termination "wild_cat99 won on time"]

1. e4 {[%clk 0:03:00.9]} 1... c5 {[%clk 0:02:57.4]} 2. Nf3 {[%clk 0:03:00.6]}
2... d6 {[%clk 0:02:57.9]} 3. Nc3 {[%clk 0:03:00.2]} 3... Nf6 {[%clk 0:02:58.1]}
4. e5 {[%clk 0:03:00.5]} 4... dxe5 {[%clk 0:02:57]} 5. Nxe5 {[%clk 0:03:00.7]}
5... e6 {[%clk 0:02:57]} 6. g3 {[%clk 0:02:59.5]} 6... Bd6 {[%clk 0:02:56]} 7.
Nc4 {[%clk 0:02:58.5]} 7... Bc7 {[%clk 0:02:55.6]} 8. Bg2 {[%clk 0:02:58.2]}
8... O-O {[%clk 0:02:55.6]} 9. d3 {[%clk 0:02:57.7]} 9... Bd7 {[%clk 0:02:50.9]}
10. Bxb7 {[%clk 0:02:53.1]} 10... Bc6 {[%clk 0:02:48.4]} 11. Bxc6 {[%clk
0:02:49.6]} 11... Nxc6 {[%clk 0:02:49.3]} 12. O-O {[%clk 0:02:49.2]} 12... Nd4
{[%clk 0:02:41.4]} 13. Be3 {[%clk 0:02:48]} 13... Nd5 {[%clk 0:02:30.6]} 14.
Nxd5 {[%clk 0:02:18.4]} 14... Qxd5 {[%clk 0:02:31.5]} 15. Bxd4 {[%clk
0:02:16.6]} 15... cxd4 {[%clk 0:02:30.7]} 16. Re1 {[%clk 0:02:08.5]} 16... Rab8
{[%clk 0:02:24.9]} 17. Qe2 {[%clk 0:02:06.9]} 17... Ba5 {[%clk 0:02:21.1]} 18.
Rf1 {[%clk 0:01:55.7]} 18... Rfc8 {[%clk 0:02:19.7]} 19. f4 {[%clk 0:01:48.4]}
19... g6 {[%clk 0:02:06]} 20. Qf3 {[%clk 0:01:45.9]} 20... Qxf3 {[%clk
0:02:04.6]} 21. Rxf3 {[%clk 0:01:44.8]} 21... Rxc4 {[%clk 0:02:04.8]} 22. dxc4
{[%clk 0:01:43.5]} 22... Rxb2 {[%clk 0:02:05.7]} 23. a3 {[%clk 0:00:30.2]} 23...
Rxc2 {[%clk 0:02:04.6]} 24. Rd3 {[%clk 0:00:29.7]} 24... Bc3 {[%clk 0:01:58]}
25. Rb1 {[%clk 0:00:28.8]} 25... Ba5 {[%clk 0:01:51.1]} 26. Rb5 {[%clk 0:00:27]}
26... Bb6 {[%clk 0:01:50.1]} 27. a4 {[%clk 0:00:26.4]} 27... Rc3 {[%clk
0:01:42.2]} 28. Rd1 {[%clk 0:00:20.7]} 28... Rxc4 {[%clk 0:01:42.1]} 29. a5
{[%clk 0:00:19.9]} 29... Bc5 {[%clk 0:01:40]} 30. Kg2 {[%clk 0:00:19.5]} 30...
Rc2+ {[%clk 0:01:37.6]} 31. Kf3 {[%clk 0:00:19.2]} 31... f5 {[%clk 0:01:32.5]}
32. Rd3 {[%clk 0:00:17.1]} 32... g5 {[%clk 0:01:26.4]} 33. h3 {[%clk 0:00:15.3]}
33... h5 {[%clk 0:01:25.3]} 34. fxg5 {[%clk 0:00:14]} 34... e5 {[%clk
0:01:23.5]} 35. Rdb3 {[%clk 0:00:11.3]} 35... e4+ {[%clk 0:01:23.1]} 36. Kf4
{[%clk 0:00:11]} 36... e3 {[%clk 0:01:21.2]} 37. Kxf5 {[%clk 0:00:10.2]} 37...
Rf2+ {[%clk 0:01:19.7]} 38. Kg6 {[%clk 0:00:09.6]} 38... e2 {[%clk 0:01:18.8]}
39. Rb8+ {[%clk 0:00:08.7]} 39... Rf8 {[%clk 0:01:10]} 40. R3b7 {[%clk
0:00:06.5]} 40... Rxb8 {[%clk 0:01:05.3]} 41. Rxb8+ {[%clk 0:00:05.9]} 41... Bf8
{[%clk 0:01:06.2]} 42. Re8 {[%clk 0:00:03.6]} 42... d3 {[%clk 0:01:06]} 0-1

[Event "*** SCC Grand Prix: Titled Tuesday Blitz"]
[Site "Chess.com"]
[Date "2020.07.07"]
[Round "6"]
[White "silverback96"]
[Black "bugsbunny444"]
[Result "0-1"]
[WhiteElo "2248"]
[BlackElo "2493"]
[TimeControl "180+1"]
[EndTime "11:05:45 PDT"]
[Termination "bugsbunny444 won by checkmate"]

1. e4 {[%clk 0:03:00.8]} 1... c5 {[%clk 0:02:57.4]} 2. Nf3 {[%clk 0:03:01.2]}
2... e6 {[%clk 0:02:57.9]} 3. d4 {[%clk 0:02:59.9]} 3... cxd4 {[%clk 0:02:58.2]}
4. Nxd4 {[%clk 0:03:00.8]} 4... a6 {[%clk 0:02:58.8]} 5. Nc3 {[%clk 0:02:59.6]}
5... Qc7 {[%clk 0:02:58.8]} 6. Bd3 {[%clk 0:03:00.1]} 6... Nf6 {[%clk
0:02:58.3]} 7. f4 {[%clk 0:02:57.5]} 7... d6 {[%clk 0:02:56.6]} 8. Qe2 {[%clk
0:02:57.6]} 8... Nbd7 {[%clk 0:02:50.8]} 9. g4 {[%clk 0:02:57.8]} 9... g6 {[%clk
0:02:39.5]} 10. g5 {[%clk 0:02:35.4]} 10... Nh5 {[%clk 0:02:39.2]} 11. Rf1
{[%clk 0:02:32.6]} 11... Bg7 {[%clk 0:02:35.8]} 12. Be3 {[%clk 0:02:29]} 12...
b5 {[%clk 0:02:29.7]} 13. f5 {[%clk 0:02:26.4]} 13... b4 {[%clk 0:01:59.5]} 14.
Nd5 {[%clk 0:02:07.7]} 14... exd5 {[%clk 0:01:52.6]} 15. e5 {[%clk 0:02:07.6]}
15... Bxe5 {[%clk 0:01:22]} 16. fxg6 {[%clk 0:02:01.2]} 16... hxg6 {[%clk
0:01:12.7]} 17. Qf3 {[%clk 0:01:53]} 17... Nb6 {[%clk 0:01:00]} 18. Nb5 {[%clk
0:01:08.7]} 18... axb5 {[%clk 0:00:52.2]} 19. Bxb5+ {[%clk 0:00:58.8]} 19... Kf8
{[%clk 0:00:46.4]} 20. Bxb6 {[%clk 0:00:57.8]} 20... Qe7 {[%clk 0:00:46.5]} 21.
Bd8 {[%clk 0:00:55]} 21... Qe6 {[%clk 0:00:19.6]} 22. O-O-O {[%clk 0:00:41.1]}
22... Rxa2 {[%clk 0:00:14.3]} 23. Kb1 {[%clk 0:00:41.4]} 23... Rxb2+ {[%clk
0:00:13.6]} 24. Kc1 {[%clk 0:00:40.7]} 24... Ra2 {[%clk 0:00:10.4]} 25. Kb1
{[%clk 0:00:39.6]} 25... Ra1# {[%clk 0:00:10.2]} 0-1

[Event "*** SCC Grand Prix: Titled Tuesday Blitz"]
[Site "Chess.com"]
[Date "2020.07.07"]
[Round "6"]
[White "allvim"]
[Black "ARMQUEEN"]
[Result "0-1"]
[WhiteElo "2266"]
[BlackElo "2424"]
[TimeControl "180+1"]
[EndTime "11:05:46 PDT"]
[Termination "ARMQUEEN won by checkmate"]

1. e4 {[%clk 0:03:00.9]} 1... c5 {[%clk 0:02:58.8]} 2. Nf3 {[%clk 0:03:01.1]}
2... Nc6 {[%clk 0:02:58.7]} 3. d4 {[%clk 0:03:01.4]} 3... cxd4 {[%clk
0:02:59.6]} 4. Nxd4 {[%clk 0:03:01.4]} 4... g6 {[%clk 0:03:00]} 5. Nc3 {[%clk
0:03:01.8]} 5... Bg7 {[%clk 0:02:59.2]} 6. Be3 {[%clk 0:03:02.5]} 6... Nf6
{[%clk 0:02:56.9]} 7. Bc4 {[%clk 0:03:02]} 7... O-O {[%clk 0:02:56.4]} 8. Bb3
{[%clk 0:03:00.7]} 8... Re8 {[%clk 0:02:55.2]} 9. f3 {[%clk 0:03:00.2]} 9... e6
{[%clk 0:02:51]} 10. Qd2 {[%clk 0:02:57.8]} 10... d5 {[%clk 0:02:47]} 11. Nxc6
{[%clk 0:02:43.3]} 11... bxc6 {[%clk 0:02:45.9]} 12. O-O-O {[%clk 0:02:43.9]}
12... Qc7 {[%clk 0:02:33.7]} 13. h4 {[%clk 0:02:38.3]} 13... h5 {[%clk
0:02:21.2]} 14. g4 {[%clk 0:02:30.5]} 14... Bb7 {[%clk 0:02:17]} 15. e5 {[%clk
0:02:21.3]} 15... Nd7 {[%clk 0:02:05.6]} 16. gxh5 {[%clk 0:02:20]} 16... Qxe5
{[%clk 0:01:59.4]} 17. hxg6 {[%clk 0:02:16.1]} 17... fxg6 {[%clk 0:01:58.8]} 18.
Rhg1 {[%clk 0:02:07.4]} 18... Qf5 {[%clk 0:01:57.3]} 19. Rg5 {[%clk 0:02:02.9]}
19... Qxf3 {[%clk 0:01:48.4]} 20. Rxg6 {[%clk 0:02:01.9]} 20... Ne5 {[%clk
0:01:48.4]} 21. Rg5 {[%clk 0:01:31.6]} 21... Nf7 {[%clk 0:01:32.7]} 22. Rg2
{[%clk 0:01:10.7]} 22... Kh8 {[%clk 0:01:27.4]} 23. Rdg1 {[%clk 0:01:09.1]}
23... Rg8 {[%clk 0:01:26.4]} 24. h5 {[%clk 0:00:37.9]} 24... e5 {[%clk 0:01:18]}
25. Rf2 {[%clk 0:00:28.4]} 25... Qxe3 {[%clk 0:01:06]} 26. Qxe3 {[%clk
0:00:06.7]} 26... Bh6 {[%clk 0:01:03.9]} 27. Rxg8+ {[%clk 0:00:03.7]} 27... Rxg8
{[%clk 0:01:04.8]} 28. Qxh6+ {[%clk 0:00:03.9]} 28... Nxh6 {[%clk 0:01:04.4]}
29. Rf6 {[%clk 0:00:03.8]} 29... Kh7 {[%clk 0:01:02.5]} 30. Rd6 {[%clk
0:00:03.6]} 30... Rg7 {[%clk 0:01:01.2]} 31. Na4 {[%clk 0:00:02.2]} 31... e4
{[%clk 0:01:00.8]} 32. Nc5 {[%clk 0:00:02.7]} 32... Bc8 {[%clk 0:01:01.2]} 33.
Ne6 {[%clk 0:00:03]} 33... Bxe6 {[%clk 0:01:00.9]} 34. Rxe6 {[%clk 0:00:03.9]}
34... Nf5 {[%clk 0:00:58.2]} 35. Rxc6 {[%clk 0:00:04]} 35... e3 {[%clk
0:00:57.5]} 36. Bxd5 {[%clk 0:00:04.3]} 36... Rg1# {[%clk 0:00:56.8]} 0-1

[Event "*** SCC Grand Prix: Titled Tuesday Blitz"]
[Site "Chess.com"]
[Date "2020.07.07"]
[Round "6"]
[White "VladimirBugayev"]
[Black "Larina_Marija"]
[Result "1-0"]
[WhiteElo "2249"]
[BlackElo "2097"]
[TimeControl "180+1"]
[EndTime "11:05:46 PDT"]
[Termination "VladimirBugayev won by checkmate"]

1. e4 {[%clk 0:03:00.9]} 1... d5 {[%clk 0:02:59.1]} 2. exd5 {[%clk 0:03:00.1]}
2... Qxd5 {[%clk 0:03:00]} 3. Nc3 {[%clk 0:03:00.4]} 3... Qa5 {[%clk 0:02:59.7]}
4. b4 {[%clk 0:02:55.6]} 4... Qxb4 {[%clk 0:02:58.6]} 5. Rb1 {[%clk 0:02:55.5]}
5... Qd6 {[%clk 0:02:57.2]} 6. Nb5 {[%clk 0:02:46.7]} 6... Qd8 {[%clk
0:02:54.9]} 7. Nf3 {[%clk 0:02:25.6]} 7... c6 {[%clk 0:02:54.3]} 8. Nbd4 {[%clk
0:02:25.8]} 8... Nf6 {[%clk 0:02:53.2]} 9. Bc4 {[%clk 0:02:23.2]} 9... e6 {[%clk
0:02:52.3]} 10. O-O {[%clk 0:02:22.2]} 10... Bc5 {[%clk 0:02:51.7]} 11. Nb3
{[%clk 0:02:17]} 11... Be7 {[%clk 0:02:50.7]} 12. a4 {[%clk 0:02:10.1]} 12...
O-O {[%clk 0:02:46.7]} 13. d3 {[%clk 0:02:09.1]} 13... Nbd7 {[%clk 0:02:43.3]}
14. a5 {[%clk 0:02:07.9]} 14... Nc5 {[%clk 0:02:40.8]} 15. Nbd4 {[%clk
0:01:55.5]} 15... Qxa5 {[%clk 0:02:36.5]} 16. Bd2 {[%clk 0:01:34.4]} 16... Qc7
{[%clk 0:02:33.4]} 17. Ne2 {[%clk 0:01:31]} 17... b5 {[%clk 0:02:32.6]} 18. Ba2
{[%clk 0:01:30.4]} 18... a5 {[%clk 0:02:31.9]} 19. Ng3 {[%clk 0:01:23.3]} 19...
b4 {[%clk 0:02:16.8]} 20. Re1 {[%clk 0:01:20.5]} 20... Bd6 {[%clk 0:02:11.8]}
21. d4 {[%clk 0:01:06.8]} 21... Na4 {[%clk 0:02:06.7]} 22. Ne5 {[%clk 0:01:07]}
22... Nd5 {[%clk 0:01:41.8]} 23. Qh5 {[%clk 0:00:53.6]} 23... Bxe5 {[%clk
0:01:34.6]} 24. dxe5 {[%clk 0:00:51.1]} 24... Nac3 {[%clk 0:01:32.3]} 25. Bxc3
{[%clk 0:00:49.8]} 25... Nxc3 {[%clk 0:01:30.3]} 26. Rb3 {[%clk 0:00:37.6]}
26... Nxa2 {[%clk 0:01:28.9]} 27. Ne4 {[%clk 0:00:37.3]} 27... f5 {[%clk
0:00:59.1]} 28. exf6 {[%clk 0:00:18.4]} 28... gxf6 {[%clk 0:00:58.8]} 29. Rg3+
{[%clk 0:00:16.7]} 29... Kh8 {[%clk 0:00:58.2]} 30. Qh6 {[%clk 0:00:15.6]} 30...
Qf7 {[%clk 0:00:51.4]} 31. Nd6 {[%clk 0:00:11.4]} 31... Qe7 {[%clk 0:00:46.8]}
32. Nf5 {[%clk 0:00:09.4]} 32... Qf7 {[%clk 0:00:44.9]} 33. Nd6 {[%clk
0:00:09.2]} 33... Qd7 {[%clk 0:00:43.9]} 34. Qxf8# {[%clk 0:00:08]} 1-0

[Event "*** SCC Grand Prix: Titled Tuesday Blitz"]
[Site "Chess.com"]
[Date "2020.07.07"]
[Round "6"]
[White "RitvarsReimanis"]
[Black "boo786"]
[Result "1/2-1/2"]
[WhiteElo "2558"]
[BlackElo "2426"]
[TimeControl "180+1"]
[EndTime "11:05:48 PDT"]
[Termination "Game drawn by repetition"]

1. d4 {[%clk 0:03:00.9]} 1... Nf6 {[%clk 0:02:58.9]} 2. c4 {[%clk 0:03:00.2]}
2... e6 {[%clk 0:02:58.9]} 3. Nf3 {[%clk 0:02:57.9]} 3... Bb4+ {[%clk
0:02:58.2]} 4. Bd2 {[%clk 0:02:57.8]} 4... Qe7 {[%clk 0:02:57.1]} 5. g3 {[%clk
0:02:56.5]} 5... Nc6 {[%clk 0:02:57.1]} 6. Bg2 {[%clk 0:02:55.9]} 6... Bxd2+
{[%clk 0:02:56.1]} 7. Nbxd2 {[%clk 0:02:55.1]} 7... d6 {[%clk 0:02:56.1]} 8. e4
{[%clk 0:02:54.8]} 8... O-O {[%clk 0:02:55.6]} 9. O-O {[%clk 0:02:54.4]} 9... a5
{[%clk 0:02:55.1]} 10. a3 {[%clk 0:02:51]} 10... a4 {[%clk 0:02:46.8]} 11. e5
{[%clk 0:02:33.7]} 11... dxe5 {[%clk 0:02:44.3]} 12. dxe5 {[%clk 0:02:33.8]}
12... Nd7 {[%clk 0:02:44.3]} 13. Qe2 {[%clk 0:02:31.3]} 13... Ra5 {[%clk
0:02:37]} 14. Rfe1 {[%clk 0:02:13.9]} 14... Ndxe5 {[%clk 0:02:30.4]} 15. b4
{[%clk 0:02:12]} 15... axb3 {[%clk 0:02:24.6]} 16. Nxb3 {[%clk 0:02:12]} 16...
Nxf3+ {[%clk 0:02:21.7]} 17. Bxf3 {[%clk 0:02:11.8]} 17... Re5 {[%clk
0:02:19.2]} 18. Qb2 {[%clk 0:02:04.2]} 18... Rxe1+ {[%clk 0:02:14.3]} 19. Rxe1
{[%clk 0:02:05.1]} 19... Bd7 {[%clk 0:02:07.3]} 20. c5 {[%clk 0:01:49.8]} 20...
Rd8 {[%clk 0:02:01.2]} 21. Qc3 {[%clk 0:01:45.8]} 21... Be8 {[%clk 0:01:54.8]}
22. Rb1 {[%clk 0:01:42.3]} 22... Ra8 {[%clk 0:01:38.7]} 23. Nd2 {[%clk
0:01:22.7]} 23... Ra7 {[%clk 0:01:26]} 24. h4 {[%clk 0:01:11.5]} 24... Qf6
{[%clk 0:01:18.6]} 25. Qxf6 {[%clk 0:00:48.2]} 25... gxf6 {[%clk 0:01:17.9]} 26.
Nc4 {[%clk 0:00:47.9]} 26... Kf8 {[%clk 0:01:07.4]} 27. Kg2 {[%clk 0:00:43]}
27... Ke7 {[%clk 0:00:59.4]} 28. g4 {[%clk 0:00:43]} 28... Ra4 {[%clk
0:00:47.9]} 29. Ne3 {[%clk 0:00:41]} 29... Nd4 {[%clk 0:00:41.1]} 30. Bxb7
{[%clk 0:00:32]} 30... Rxa3 {[%clk 0:00:39.9]} 31. Be4 {[%clk 0:00:28.4]} 31...
h6 {[%clk 0:00:35]} 32. Rb7 {[%clk 0:00:24.6]} 32... Kd8 {[%clk 0:00:31.9]} 33.
Rb8+ {[%clk 0:00:24.4]} 33... Ke7 {[%clk 0:00:31.9]} 34. Rb7 {[%clk 0:00:23.8]}
34... Kd8 {[%clk 0:00:26.5]} 35. Rb8+ {[%clk 0:00:23.9]} 35... Ke7 {[%clk
0:00:26.1]} 36. Rb7 {[%clk 0:00:24.2]} 1/2-1/2

[Event "*** SCC Grand Prix: Titled Tuesday Blitz"]
[Site "Chess.com"]
[Date "2020.07.07"]
[Round "6"]
[White "ahachess"]
[Black "Keithonsky"]
[Result "1/2-1/2"]
[WhiteElo "2279"]
[BlackElo "2418"]
[TimeControl "180+1"]
[EndTime "11:05:48 PDT"]
[Termination "Game drawn by repetition"]

1. d4 {[%clk 0:03:00.7]} 1... Nf6 {[%clk 0:02:58.3]} 2. c4 {[%clk 0:03:00.1]}
2... e6 {[%clk 0:02:58]} 3. a3 {[%clk 0:03:00.2]} 3... d5 {[%clk 0:02:57.1]} 4.
Nf3 {[%clk 0:03:00.4]} 4... Be7 {[%clk 0:02:56.5]} 5. e3 {[%clk 0:03:00.8]} 5...
O-O {[%clk 0:02:56.5]} 6. Nc3 {[%clk 0:03:01.4]} 6... b6 {[%clk 0:02:56.3]} 7.
b4 {[%clk 0:02:59.2]} 7... Bb7 {[%clk 0:02:56.3]} 8. Bb2 {[%clk 0:02:59.7]} 8...
Nbd7 {[%clk 0:02:50.3]} 9. c5 {[%clk 0:02:59.4]} 9... c6 {[%clk 0:02:48.8]} 10.
Bd3 {[%clk 0:02:56.6]} 10... Re8 {[%clk 0:02:45.4]} 11. O-O {[%clk 0:02:55.7]}
11... Bf8 {[%clk 0:02:45.8]} 12. Ne2 {[%clk 0:02:53]} 12... a5 {[%clk
0:02:42.3]} 13. Qc2 {[%clk 0:02:52.6]} 13... axb4 {[%clk 0:02:42.3]} 14. axb4
{[%clk 0:02:52.2]} 14... h6 {[%clk 0:02:41.7]} 15. Ne5 {[%clk 0:02:40.6]} 15...
Nxe5 {[%clk 0:02:38.8]} 16. dxe5 {[%clk 0:02:40.6]} 16... Nd7 {[%clk 0:02:39.7]}
17. Bd4 {[%clk 0:02:40.4]} 17... bxc5 {[%clk 0:02:34.9]} 18. bxc5 {[%clk
0:02:39.8]} 18... Qc7 {[%clk 0:02:34.4]} 19. f4 {[%clk 0:02:39]} 19... Rxa1
{[%clk 0:02:26.1]} 20. Rxa1 {[%clk 0:02:38.6]} 20... Ra8 {[%clk 0:02:27]} 21.
Rxa8 {[%clk 0:02:36.5]} 21... Bxa8 {[%clk 0:02:27.9]} 22. Qa4 {[%clk 0:01:46.6]}
22... Qb7 {[%clk 0:02:22.4]} 23. Qa5 {[%clk 0:01:45.7]} 23... Qb8 {[%clk
0:02:15.7]} 24. Nc3 {[%clk 0:01:38.8]} 24... Bb7 {[%clk 0:02:15.4]} 25. Na4
{[%clk 0:01:37.4]} 25... Be7 {[%clk 0:02:14.3]} 26. Nb6 {[%clk 0:01:27.6]} 26...
Qc7 {[%clk 0:02:07.2]} 27. Qb4 {[%clk 0:01:13.1]} 27... Nxb6 {[%clk 0:01:59.1]}
28. Qxb6 {[%clk 0:01:12.9]} 28... Qxb6 {[%clk 0:01:59.2]} 29. cxb6 {[%clk
0:01:13.8]} 29... c5 {[%clk 0:01:58.2]} 30. Bc3 {[%clk 0:01:13.5]} 30... c4
{[%clk 0:01:54.3]} 31. Bc2 {[%clk 0:01:12.2]} 31... Bc5 {[%clk 0:01:54.6]} 32.
Bd4 {[%clk 0:01:12]} 32... Bxd4 {[%clk 0:01:52.7]} 33. exd4 {[%clk 0:01:12.9]}
33... Kf8 {[%clk 0:01:53.6]} 34. Ba4 {[%clk 0:01:12.5]} 34... Ke7 {[%clk
0:01:54.5]} 35. g4 {[%clk 0:01:08.9]} 35... Kd8 {[%clk 0:01:47.3]} 36. Kf2
{[%clk 0:01:05.4]} 36... c3 {[%clk 0:01:44.7]} 37. Ke2 {[%clk 0:01:04.9]} 37...
Ba6+ {[%clk 0:01:44.9]} 38. Kd1 {[%clk 0:01:04.2]} 38... Bd3 {[%clk 0:01:43.5]}
39. Bc6 {[%clk 0:01:00.4]} 39... f6 {[%clk 0:01:35]} 40. h4 {[%clk 0:00:57.1]}
40... fxe5 {[%clk 0:01:34]} 41. fxe5 {[%clk 0:00:52.7]} 41... g5 {[%clk
0:01:34.4]} 42. hxg5 {[%clk 0:00:50.8]} 42... hxg5 {[%clk 0:01:35.3]} 43. Kc1
{[%clk 0:00:50.7]} 43... Be4 {[%clk 0:01:35.1]} 44. Bb5 {[%clk 0:00:46.5]} 44...
Kc8 {[%clk 0:01:33.9]} 45. Bc6 {[%clk 0:00:46.4]} 45... Kb8 {[%clk 0:01:29.6]}
46. Kd1 {[%clk 0:00:33.6]} 46... Bf3+ {[%clk 0:01:29.3]} 47. Kc2 {[%clk
0:00:34]} 47... Bxg4 {[%clk 0:01:30.2]} 48. Kxc3 {[%clk 0:00:34.2]} 48... Bf5
{[%clk 0:01:31.1]} 49. Kd2 {[%clk 0:00:33.5]} 49... g4 {[%clk 0:01:30.2]} 50.
Ke3 {[%clk 0:00:34.2]} 50... Be4 {[%clk 0:01:30.4]} 51. Kf4 {[%clk 0:00:34.3]}
51... Bf5 {[%clk 0:01:28.1]} 52. Kg3 {[%clk 0:00:34.2]} 52... Kc8 {[%clk
0:01:28.4]} 53. Kf4 {[%clk 0:00:34.8]} 53... Kb8 {[%clk 0:01:28.9]} 54. Kg3
{[%clk 0:00:35.4]} 54... Kc8 {[%clk 0:01:29.5]} 55. Kf4 {[%clk 0:00:35.9]} 55...
Kb8 {[%clk 0:01:30.2]} 1/2-1/2

[Event "*** SCC Grand Prix: Titled Tuesday Blitz"]
[Site "Chess.com"]
[Date "2020.07.07"]
[Round "6"]
[White "anesar92"]
[Black "Indianlad"]
[Result "0-1"]
[WhiteElo "2726"]
[BlackElo "2960"]
[TimeControl "180+1"]
[EndTime "11:05:51 PDT"]
[Termination "Indianlad won on time"]

1. e4 {[%clk 0:02:53.9]} 1... c5 {[%clk 0:02:56.2]} 2. Nf3 {[%clk 0:02:52.8]}
2... d6 {[%clk 0:02:56.6]} 3. d4 {[%clk 0:02:52.9]} 3... cxd4 {[%clk 0:02:57.5]}
4. Nxd4 {[%clk 0:02:53.2]} 4... Nf6 {[%clk 0:02:57.9]} 5. Nc3 {[%clk 0:02:53.7]}
5... a6 {[%clk 0:02:58.5]} 6. Bg5 {[%clk 0:02:54.2]} 6... Qa5 {[%clk 0:02:55.9]}
7. Qd2 {[%clk 0:02:41.1]} 7... Nc6 {[%clk 0:02:53.8]} 8. Nb3 {[%clk 0:02:35.5]}
8... Qc7 {[%clk 0:02:51.3]} 9. Nd5 {[%clk 0:02:29]} 9... Nxd5 {[%clk 0:02:51.5]}
10. exd5 {[%clk 0:02:29.9]} 10... Ne5 {[%clk 0:02:52.1]} 11. f4 {[%clk 0:02:20]}
11... Ng6 {[%clk 0:02:50.3]} 12. Bd3 {[%clk 0:02:09.3]} 12... h6 {[%clk
0:02:50.3]} 13. f5 {[%clk 0:02:09.6]} 13... Ne5 {[%clk 0:02:00]} 14. Bf4 {[%clk
0:02:07.5]} 14... Bd7 {[%clk 0:02:00.3]} 15. c4 {[%clk 0:01:57.8]} 15... g5
{[%clk 0:01:58]} 16. fxg6 {[%clk 0:01:50.8]} 16... Nxg6 {[%clk 0:01:58.1]} 17.
Bxg6 {[%clk 0:01:40.8]} 17... fxg6 {[%clk 0:01:59]} 18. Qd4 {[%clk 0:01:40.4]}
18... Rg8 {[%clk 0:01:53.8]} 19. c5 {[%clk 0:01:40.7]} 19... dxc5 {[%clk
0:01:31.3]} 20. Qe3 {[%clk 0:01:31]} 20... Qb6 {[%clk 0:01:29.7]} 21. O-O {[%clk
0:01:02.4]} 21... Bg7 {[%clk 0:01:30.1]} 22. Nxc5 {[%clk 0:00:53.3]} 22... Rc8
{[%clk 0:01:27.4]} 23. Rac1 {[%clk 0:00:44.5]} 23... Bxb2 {[%clk 0:01:26.9]} 24.
d6 {[%clk 0:00:44.1]} 24... e6 {[%clk 0:01:14.9]} 25. Nxd7 {[%clk 0:00:19.5]}
25... Qxe3+ {[%clk 0:01:11.1]} 26. Bxe3 {[%clk 0:00:19.6]} 26... Kxd7 {[%clk
0:01:07.3]} 27. Rf7+ {[%clk 0:00:12.3]} 27... Kxd6 {[%clk 0:01:07.5]} 28. Rd1+
{[%clk 0:00:11.3]} 28... Kc6 {[%clk 0:01:07.7]} 29. Rd2 {[%clk 0:00:09.9]} 29...
Bc3 {[%clk 0:00:58.6]} 30. Rc2 {[%clk 0:00:08.2]} 30... Kd5 {[%clk 0:00:59]} 31.
Kf2 {[%clk 0:00:06.9]} 31... Ke4 {[%clk 0:00:56.2]} 32. Rf4+ {[%clk 0:00:04.8]}
32... Kd3 {[%clk 0:00:56.1]} 33. Re2 {[%clk 0:00:03.8]} 33... Rgf8 {[%clk
0:00:55.3]} 0-1

[Event "*** SCC Grand Prix: Titled Tuesday Blitz"]
[Site "Chess.com"]
[Date "2020.07.07"]
[Round "6"]
[White "MFBerna"]
[Black "PIwan"]
[Result "1-0"]
[WhiteElo "2398"]
[BlackElo "2503"]
[TimeControl "180+1"]
[EndTime "11:05:51 PDT"]
[Termination "MFBerna won by resignation"]

1. e4 {[%clk 0:03:00.9]} 1... e6 {[%clk 0:02:54.1]} 2. d4 {[%clk 0:03:00.1]}
2... d5 {[%clk 0:02:55]} 3. Nd2 {[%clk 0:02:57.4]} 3... Be7 {[%clk 0:02:54.4]}
4. Ngf3 {[%clk 0:02:53.1]} 4... Nf6 {[%clk 0:02:54.1]} 5. Bd3 {[%clk 0:02:52.1]}
5... c5 {[%clk 0:02:52.6]} 6. exd5 {[%clk 0:02:46.9]} 6... Qxd5 {[%clk
0:02:52.1]} 7. dxc5 {[%clk 0:02:44.6]} 7... Nbd7 {[%clk 0:02:51.8]} 8. O-O
{[%clk 0:02:38.9]} 8... Nxc5 {[%clk 0:02:50.6]} 9. Bb5+ {[%clk 0:02:35.5]} 9...
Bd7 {[%clk 0:02:50.4]} 10. Qe2 {[%clk 0:02:18.6]} 10... O-O {[%clk 0:02:45.4]}
11. Bxd7 {[%clk 0:02:17.4]} 11... Qxd7 {[%clk 0:02:42.8]} 12. Ne5 {[%clk
0:02:14.1]} 12... Qc7 {[%clk 0:02:21.8]} 13. Ndf3 {[%clk 0:02:13]} 13... Nd5
{[%clk 0:01:50.4]} 14. Bd2 {[%clk 0:01:42.7]} 14... f6 {[%clk 0:01:41.1]} 15.
Nd3 {[%clk 0:01:07]} 15... Nxd3 {[%clk 0:01:40.7]} 16. Qxe6+ {[%clk 0:01:04.5]}
16... Kh8 {[%clk 0:01:30]} 17. cxd3 {[%clk 0:01:04.5]} 17... Rad8 {[%clk
0:01:25.6]} 18. Rac1 {[%clk 0:00:55.8]} 18... Qb8 {[%clk 0:01:19.6]} 19. Rfe1
{[%clk 0:00:45.2]} 19... Bd6 {[%clk 0:01:19.1]} 20. g3 {[%clk 0:00:33.6]} 20...
Bb4 {[%clk 0:01:15.3]} 21. Rcd1 {[%clk 0:00:19.9]} 21... b6 {[%clk 0:01:14.2]}
22. Qf5 {[%clk 0:00:19]} 22... Qb7 {[%clk 0:01:10.6]} 23. Nd4 {[%clk 0:00:16.4]}
23... Bxd2 {[%clk 0:01:06.6]} 24. Rxd2 {[%clk 0:00:17.3]} 24... Ne7 {[%clk
0:00:51.5]} 25. Qe4 {[%clk 0:00:17.2]} 25... Qxe4 {[%clk 0:00:44.5]} 26. Rxe4
{[%clk 0:00:18.1]} 26... Nd5 {[%clk 0:00:41]} 27. Ne6 {[%clk 0:00:17.5]} 27...
f5 {[%clk 0:00:38.9]} 28. Re5 {[%clk 0:00:13.9]} 28... Rfe8 {[%clk 0:00:35.3]}
29. Nxd8 {[%clk 0:00:13]} 29... Rxe5 {[%clk 0:00:35]} 30. Nf7+ {[%clk
0:00:12.9]} 30... Kg8 {[%clk 0:00:34.5]} 31. Nxe5 {[%clk 0:00:13.8]} 1-0